{"text_format":"1","workbook":"xlsx","n_sheets":2,"sheets":["Номенклатура","Все заказы"],"not_rendered":{"charts":0,"images":2,"macros":1,"external_links":0,"defined_names":10,"comments":0,"pivot_tables":0},"unopened":[],"bounds":{"document_bytes":16777216,"sheet_cells":100000,"rows_first":2000,"rows_last":500,"rows_between":2000,"halvings":0,"cell_chars":16384,"cell_head_chars":4096},"cells_cut":0,"cells_raw":0,"read":"whole","date_system":"1900"}

{"sheet":"Номенклатура","index":0,"n_rows":45,"n_cols":1,"rows_kept":45,"cut":false,"hidden":false,"merged":[]}
["10/3"]
["10/3 х/б Белая"]
["10/3 х/б Серая"]
["10/3 х/б с ПВХ Белая"]
["10/3 х/б с ПВХ Серая"]
["10/3 х/б с ПВХ белая (Точка)"]
["10/3 х/б с ПВХ белая (Волна)"]
["10/3 х/б с ПВХ белая (Протектор)"]
["10/3 х/б с ПВХ Серая (Точка)"]
["10/3 х/б с ПВХ Серая (Волна)"]
["10/3 х/б с ПВХ Серая (Протектор)"]
["10/4"]
["10/4 х/б Белая"]
["10/4 х/б Серая"]
["10/4 х/б с ПВХ Белая"]
["10/4 х/б с ПВХ Серая"]
["10/4 х/б с ПВХ белая (Точка)"]
["10/4 х/б с ПВХ белая (Волна)"]
["10/4 х/б с ПВХ белая (Протектор)"]
["10/4 х/б с ПВХ Серая (Точка)"]
["10/4 х/б с ПВХ Серая (Волна)"]
["10/4 х/б с ПВХ Серая (Протектор)"]
["10/5"]
["10/5 х/б Белая"]
["10/5 х/б Серая"]
["10/5 х/б Черная"]
["10/5 х/б Желтая"]
["10/5 х/б Розовая"]
["10/5 х/б с ПВХ Белая"]
["10/5 х/б с ПВХ Серая"]
["10/5 х/б с ПВХ Черная"]
["10/5 х/б с ПВХ Желтая"]
["10/5 х/б с ПВХ Розовая"]
["10/5 х/б с ПВХ белая (Точка)"]
["10/5 х/б с ПВХ белая (Волна)"]
["10/5 х/б с ПВХ белая (Протектор)"]
["10/5 х/б с ПВХ Серая (Точка)"]
["10/5 х/б с ПВХ Серая (Волна)"]
["10/5 х/б с ПВХ Серая (Протектор)"]
["10/5 х/б с ПВХ Черная (Точка)"]
["10/5 х/б с ПВХ Черная (Волна)"]
["10/5 х/б с ПВХ Черная (Протектор)"]
["10/5 х/б с ПВХ Желтая (Точка)"]
["10/5 х/б с ПВХ Желтая (Волна)"]
["10/5 х/б с ПВХ Желтая (Протектор)"]

{"sheet":"Все заказы","index":1,"n_rows":113,"n_cols":17,"rows_kept":113,"cut":false,"hidden":false,"merged":[[13,15,14,15],[13,14,14,14],[34,10,34,11],[29,15,30,15],[26,10,27,10],[29,10,29,11]]}
["Клиент","10/3","кол","10/4","кол","10/5","кол","Общ","№ Счета",null,"10/3","10/4","10/5",null,"10/3","10/4","10/5"]
["Дядя ваня","10/3 х/б Белая",500,"10/4 х/б Серая",500,"10/5 х/б с ПВХ Белая",500,{"$f":"SUM(C2,E2,G2)","v":1500},null,null,"10/3 х/б Белая","10/4 х/б Белая","10/5 х/б Белая",null,"Белая","Белая","Белая"]
["ktif","10/3 х/б Белая",1200,"10/4 х/б с ПВХ Серая (Точка)",500,"10/5 х/б Розовая",4586,{"$f":"SUM(C3,E3,G3)","v":6286},null,null,{"$f":"SUMPRODUCT(($B$2:$B$113=K$2)*$J$4:$J$115*$C$2:$C$113)","v":0},{"$f":"SUMPRODUCT(($D$2:$D$113=L$2)*$J$4:$J$115*$E$2:$E$113)","v":0},{"$f":"SUMPRODUCT(($F$2:$F$113=M$2)*$J$4:$J$115*$G$2:$G$113)","v":0},null,{"$f":"K7+K11+K13+K15","v":0},{"$f":"L7+L11+L13+L15","v":0},{"$f":"M13+M23+M25+M27","v":0}]
[null,"10/3 х/б Белая",500,"10/4 х/б с ПВХ Серая (Точка)",null,"10/5 х/б Розовая",null,500,null,false,"10/3 х/б Серая","10/4 х/б Серая","10/5 х/б Серая",null,"Серая","Серая","Серая"]
[null,"10/3 х/б Белая",500,"10/4 х/б с ПВХ Серая (Точка)",null,"10/5 х/б Розовая",null,500,null,false,{"$f":"SUMPRODUCT(($B$2:$B$113=K$4)*$J$4:$J$115*$C$2:$C$113)","v":0},{"$f":"SUMPRODUCT(($D$2:$D$113=L$4)*$J$4:$J$115*$E$2:$E$113)","v":0},{"$f":"SUMPRODUCT(($F$2:$F$113=M$4)*$J$4:$J$115*$G$2:$G$113)","v":0},null,{"$f":"K9+K17+K19+K21","v":0},{"$f":"SUM(L9+L17+L19+L21)","v":0},{"$f":"M15+M29+M31+M33","v":0}]
[null,"10/3 х/б Белая",null,"10/4 х/б с ПВХ Серая (Точка)",null,"10/5 х/б Розовая",null,0,null,false,"10/3 х/б с ПВХ Белая","10/4 х/б с ПВХ Белая","10/5 х/б Черная",null,null,null,"Черная"]
[null,"10/3 х/б Белая",null,"10/4 х/б с ПВХ Серая (Точка)",null,"10/5 х/б Розовая",null,0,null,false,{"$f":"SUMPRODUCT(($B$2:$B$113=K$6)*$J$4:$J$115*$C$2:$C$113)","v":0},{"$f":"SUMPRODUCT(($D$2:$D$113=L$6)*$J$4:$J$115*$E$2:$E$113)","v":0},{"$f":"SUMPRODUCT(($F$2:$F$113=M$6)*$J$4:$J$115*$G$2:$G$113)","v":0},null,null,null,{"$f":"M17+M35+M37+M39","v":0}]
[null,"10/3 х/б Белая",null,"10/4 х/б с ПВХ Серая (Точка)",null,"10/5 х/б с ПВХ Розовая",500,500,null,true,"10/3 х/б с ПВХ Серая","10/4 х/б с ПВХ Серая","10/5 х/б Желтая",null,null,null,"Желтая"]
[null,"10/3 х/б Белая",null,"10/4 х/б с ПВХ Серая (Точка)",null,"10/5 х/б Розовая",500,500,null,false,{"$f":"SUMPRODUCT(($B$2:$B$113=K$8)*$J$4:$J$115*$C$2:$C$113)","v":0},{"$f":"SUMPRODUCT(($D$2:$D$113=L$8)*$J$4:$J$115*$E$2:$E$113)","v":0},{"$f":"SUMPRODUCT(($F$2:$F$113=M$8)*$J$4:$J$115*$G$2:$G$113)","v":0},null,null,null,{"$f":"SUM(M19+M41+M43+M45)","v":0}]
[null,"10/3 х/б Белая",null,"10/4 х/б с ПВХ Серая (Точка)",null,"10/5 х/б Розовая",500,500,null,true,"10/3 х/б с ПВХ белая (Точка)","10/4 х/б с ПВХ белая (Точка)","10/5 х/б Розовая",null,null,null,"Розовая"]
[null,"10/3 х/б Белая",null,"10/4 х/б с ПВХ Серая (Точка)",null,"10/5 х/б Розовая",500,500,null,true,{"$f":"SUMPRODUCT(($B$2:$B$113=K$10)*$J$4:$J$115*$C$2:$C$113)","v":0},{"$f":"SUMPRODUCT(($D$2:$D$113=L$10)*$J$4:$J$115*$E$2:$E$113)","v":0},{"$f":"SUMPRODUCT(($F$2:$F$113=M$10)*$J$4:$J$115*$G$2:$G$113)","v":500},null,null,null,{"$f":"M21+M47+M49+M51","v":500}]
[null,"10/3 х/б Белая",null,"10/4 х/б с ПВХ Серая (Точка)",null,"10/5 х/б Розовая",null,0,null,null,"10/3 х/б с ПВХ белая (Волна)","10/4 х/б с ПВХ белая (Волна)","10/5 х/б с ПВХ Белая"]
[null,"10/3 х/б Белая",null,"10/4 х/б с ПВХ Серая (Точка)",null,"10/5 х/б Розовая",null,0,null,null,{"$f":"SUMPRODUCT(($B$2:$B$113=K$12)*$J$4:$J$115*$C$2:$C$113)","v":0},{"$f":"SUMPRODUCT(($D$2:$D$113=L$12)*$J$4:$J$115*$E$2:$E$113)","v":0},{"$f":"SUMPRODUCT(($F$2:$F$113=M$12)*$J$4:$J$115*$G$2:$G$113)","v":0},null,null,"Сумма ПВХ"]
[null,"10/3 х/б Белая",null,"10/4 х/б с ПВХ Серая (Точка)",null,"10/5 х/б Розовая",null,0,null,null,"10/3 х/б с ПВХ белая (Протектор)","10/4 х/б с ПВХ белая (Протектор)","10/5 х/б с ПВХ Серая",null,null,{"$f":"SUM(O3,O5,P3,P5,Q3,Q5,Q7,Q9,Q11)","v":500}]
[null,"10/3 х/б Белая",null,"10/4 х/б с ПВХ Серая (Точка)",null,"10/5 х/б Розовая",null,0,null,null,{"$f":"SUMPRODUCT(($B$2:$B$113=K$14)*$J$4:$J$115*$C$2:$C$113)","v":0},{"$f":"SUMPRODUCT(($D$2:$D$113=L$14)*$J$4:$J$115*$E$2:$E$113)","v":0},{"$f":"SUMPRODUCT(($F$2:$F$113=M$14)*$J$4:$J$115*$G$2:$G$113)","v":0}]
[null,"10/3 х/б Белая",null,"10/4 х/б с ПВХ Серая (Точка)",null,"10/5 х/б Розовая",null,0,null,null,"10/3 х/б с ПВХ Серая (Точка)","10/4 х/б с ПВХ Серая (Точка)","10/5 х/б с ПВХ Черная"]
[null,"10/3 х/б Белая",null,"10/4 х/б с ПВХ Серая (Точка)",null,"10/5 х/б Розовая",null,0,null,null,{"$f":"SUMPRODUCT(($B$2:$B$113=K$16)*$J$4:$J$115*$C$2:$C$113)","v":0},{"$f":"SUMPRODUCT(($D$2:$D$113=L$16)*$J$4:$J$115*$E$2:$E$113)","v":0},{"$f":"SUMPRODUCT(($F$2:$F$113=M$16)*$J$4:$J$115*$G$2:$G$113)","v":0},null,"10/3","10/4","10/5"]
[null,"10/3 х/б Белая",null,"10/4 х/б с ПВХ Серая (Точка)",null,"10/5 х/б Розовая",null,0,null,null,"10/3 х/б с ПВХ Серая (Волна)","10/4 х/б с ПВХ Серая (Волна)","10/5 х/б с ПВХ Желтая",null,"Белая","Белая","Белая"]
[null,"10/3 х/б Белая",null,"10/4 х/б с ПВХ Серая (Точка)",null,"10/5 х/б Розовая",null,0,null,null,{"$f":"SUMPRODUCT(($B$2:$B$113=K$18)*$J$4:$J$115*$C$2:$C$113)","v":0},{"$f":"SUMPRODUCT(($D$2:$D$113=L$18)*$J$4:$J$115*$E$2:$E$113)","v":0},{"$f":"SUMPRODUCT(($F$2:$F$113=M$18)*$J$4:$J$115*$G$2:$G$113)","v":0},null,{"$f":"K3","v":0},{"$f":"L3","v":0},{"$f":"M3","v":0}]
[null,"10/3 х/б Белая",null,"10/4 х/б с ПВХ Серая (Точка)",null,"10/5 х/б Розовая",null,0,null,null,"10/3 х/б с ПВХ Серая (Протектор)","10/4 х/б с ПВХ Серая (Протектор)","10/5 х/б с ПВХ Розовая",null,"Серая","Серая","Серая"]
[null,"10/3 х/б Белая",null,"10/4 х/б с ПВХ Серая (Точка)",null,"10/5 х/б Розовая",null,0,null,null,{"$f":"SUMPRODUCT(($B$2:$B$113=K$20)*$J$4:$J$115*$C$2:$C$113)","v":0},{"$f":"SUMPRODUCT(($D$2:$D$113=L$20)*$J$4:$J$115*$E$2:$E$113)","v":0},{"$f":"SUMPRODUCT(($F$2:$F$113=M$20)*$J$4:$J$115*$G$2:$G$113)","v":500},null,{"$f":"K5","v":0},{"$f":"L5","v":0},{"$f":"M5","v":0}]
[null,"10/3 х/б Белая",null,"10/4 х/б с ПВХ Серая (Точка)",null,"10/5 х/б Розовая",null,0,null,null,null,null,"10/5 х/б с ПВХ белая (Точка)",null,null,null,"Черная"]
[null,"10/3 х/б Белая",null,"10/4 х/б с ПВХ Серая (Точка)",null,"10/5 х/б Розовая",null,0,null,null,null,null,{"$f":"SUMPRODUCT(($F$2:$F$113=M$22)*$J$4:$J$115*$G$2:$G$113)","v":0},null,null,null,{"$f":"M7","v":0}]
[null,"10/3 х/б Белая",null,"10/4 х/б с ПВХ Серая (Точка)",null,"10/5 х/б Розовая",null,0,null,null,null,null,"10/5 х/б с ПВХ белая (Волна)",null,null,null,"Желтая"]
[null,"10/3 х/б Белая",null,"10/4 х/б с ПВХ Серая (Точка)",null,"10/5 х/б Розовая",null,0,null,null,null,null,{"$f":"SUMPRODUCT(($F$2:$F$113=M$24)*$J$4:$J$115*$G$2:$G$113)","v":0},null,null,null,{"$f":"M9","v":0}]
[null,"10/3 х/б Белая",null,"10/4 х/б с ПВХ Серая (Точка)",null,"10/5 х/б Розовая",null,0,null,null,"Общая Сумма",null,"10/5 х/б с ПВХ белая (Протектор)",null,null,null,"Розовая"]
[null,"10/3 х/б Белая",null,"10/4 х/б с ПВХ Серая (Точка)",null,"10/5 х/б Розовая",null,0,null,null,{"$f":"SUM(K3,K5,K7,K9,K11,K13,K15,K17,K19,K21,L3,L5,L7,L9,L11,L13,L15,L17,L19,L21,M3,M5,M7,M9,M11,M13,M15,M17,M19,M21,M23,M25,M27,M29,M31,M33,M35,M37,M39,M41,M43,M45,M47,M49,M51)","v":1000},null,{"$f":"SUMPRODUCT(($F$2:$F$113=M$26)*$J$4:$J$115*$G$2:$G$113)","v":0},null,null,null,{"$f":"M11","v":500}]
[null,"10/3 х/б Белая",null,"10/4 х/б с ПВХ Серая (Точка)",null,"10/5 х/б Розовая",null,0,null,null,null,null,"10/5 х/б с ПВХ Серая (Точка)"]
[null,"10/3 х/б Белая",null,"10/4 х/б с ПВХ Серая (Точка)",null,"10/5 х/б Розовая",null,0,null,null,null,null,{"$f":"SUMPRODUCT(($F$2:$F$113=M$28)*$J$4:$J$115*$G$2:$G$113)","v":0},null,null,"Сумма Х/Б"]
[null,"10/3 х/б Белая",null,"10/4 х/б с ПВХ Серая (Точка)",null,"10/5 х/б Розовая",null,0,null,null,"Выделить все галочки",null,"10/5 х/б с ПВХ Серая (Волна)",null,null,{"$f":"SUM(O19,O21,P19,P21,Q19,Q21,Q23,Q25,Q27)","v":500}]
[null,"10/3 х/б Белая",null,"10/4 х/б с ПВХ Серая (Точка)",null,"10/5 х/б Розовая",null,0,null,null,null,null,{"$f":"SUMPRODUCT(($F$2:$F$113=M$30)*$J$4:$J$115*$G$2:$G$113)","v":0}]
[null,"10/3 х/б Белая",null,"10/4 х/б с ПВХ Серая (Точка)",null,"10/5 х/б Розовая",null,0,null,null,null,null,"10/5 х/б с ПВХ Серая (Протектор)"]
[null,"10/3 х/б Белая",null,"10/4 х/б с ПВХ Серая (Точка)",null,"10/5 х/б Розовая",null,0,null,null,null,null,{"$f":"SUMPRODUCT(($F$2:$F$113=M$32)*$J$4:$J$115*$G$2:$G$113)","v":0}]
[null,"10/3 х/б Белая",null,"10/4 х/б с ПВХ Серая (Точка)",null,"10/5 х/б Розовая",null,0,null,null,null,null,"10/5 х/б с ПВХ Черная (Точка)"]
[null,"10/3 х/б Белая",null,"10/4 х/б с ПВХ Серая (Точка)",null,"10/5 х/б Розовая",null,0,null,null,"Снять все галочки",null,{"$f":"SUMPRODUCT(($F$2:$F$113=M$34)*$J$4:$J$115*$G$2:$G$113)","v":0}]
[null,"10/3 х/б Белая",null,"10/4 х/б с ПВХ Серая (Точка)",null,"10/5 х/б Розовая",null,0,null,null,null,null,"10/5 х/б с ПВХ Черная (Волна)"]
[null,"10/3 х/б Белая",null,"10/4 х/б с ПВХ Серая (Точка)",null,"10/5 х/б Розовая",null,0,null,null,null,null,{"$f":"SUMPRODUCT(($F$2:$F$113=M$36)*$J$4:$J$115*$G$2:$G$113)","v":0}]
[null,"10/3 х/б Белая",null,"10/4 х/б с ПВХ Серая (Точка)",null,"10/5 х/б Розовая",null,0,null,null,null,null,"10/5 х/б с ПВХ Черная (Протектор)"]
[null,"10/3 х/б Белая",null,"10/4 х/б с ПВХ Серая (Точка)",null,"10/5 х/б Розовая",null,0,null,null,null,null,{"$f":"SUMPRODUCT(($F$2:$F$113=M$38)*$J$4:$J$115*$G$2:$G$113)","v":0}]
[null,"10/3 х/б Белая",null,"10/4 х/б с ПВХ Серая (Точка)",null,"10/5 х/б Розовая",null,0,null,null,null,null,"10/5 х/б с ПВХ Желтая (Точка)"]
[null,"10/3 х/б Белая",null,"10/4 х/б с ПВХ Серая (Точка)",null,"10/5 х/б Розовая",null,0,null,null,null,null,{"$f":"SUMPRODUCT(($F$2:$F$113=M$40)*$J$4:$J$115*$G$2:$G$113)","v":0}]
[null,"10/3 х/б Белая",null,"10/4 х/б с ПВХ Серая (Точка)",null,"10/5 х/б Розовая",null,0,null,null,null,null,"10/5 х/б с ПВХ Желтая (Волна)"]
[null,"10/3 х/б Белая",null,"10/4 х/б с ПВХ Серая (Точка)",null,"10/5 х/б Розовая",null,0,null,null,null,null,{"$f":"SUMPRODUCT(($F$2:$F$113=M$42)*$J$4:$J$115*$G$2:$G$113)","v":0}]
[null,"10/3 х/б Белая",null,"10/4 х/б с ПВХ Серая (Точка)",null,"10/5 х/б Розовая",null,0,null,null,null,null,"10/5 х/б с ПВХ Желтая (Протектор)"]
[null,"10/3 х/б Белая",null,"10/4 х/б с ПВХ Серая (Точка)",null,"10/5 х/б Розовая",null,0,null,null,null,null,{"$f":"SUMPRODUCT(($F$2:$F$113=M$44)*$J$4:$J$115*$G$2:$G$113)","v":0}]
[null,"10/3 х/б Белая",null,"10/4 х/б с ПВХ Серая (Точка)",null,"10/5 х/б Розовая",null,0,null,null,null,null,"10/5 х/б с ПВХ Розовая (Точка)"]
[null,"10/3 х/б Белая",null,"10/4 х/б с ПВХ Серая (Точка)",null,"10/5 х/б Розовая",null,0,null,null,null,null,{"$f":"SUMPRODUCT(($F$2:$F$113=M$46)*$J$4:$J$115*$G$2:$G$113)","v":0}]
[null,"10/3 х/б Белая",null,"10/4 х/б с ПВХ Серая (Точка)",null,"10/5 х/б Розовая",null,0,null,null,null,null,"10/5 х/б с ПВХ Розовая (Волна)"]
[null,"10/3 х/б Белая",null,"10/4 х/б с ПВХ Серая (Точка)",null,"10/5 х/б Розовая",null,0,null,null,null,null,{"$f":"SUMPRODUCT(($F$2:$F$113=M$48)*$J$4:$J$115*$G$2:$G$113)","v":0}]
[null,"10/3 х/б Белая",null,"10/4 х/б с ПВХ Серая (Точка)",null,"10/5 х/б Розовая",null,0,null,null,null,null,"10/5 х/б с ПВХ розовая (Протектор)"]
[null,"10/3 х/б Белая",null,"10/4 х/б с ПВХ Серая (Точка)",null,"10/5 х/б Розовая",null,0,null,null,null,null,{"$f":"SUMPRODUCT(($F$2:$F$113=M$50)*$J$4:$J$115*$G$2:$G$113)","v":0}]
[null,"10/3 х/б Белая",null,"10/4 х/б с ПВХ Серая (Точка)",null,"10/5 х/б Розовая",null,0,null,null,null,"Сумма"]
[null,"10/3 х/б Белая",null,"10/4 х/б с ПВХ Серая (Точка)",null,"10/5 х/б Розовая",null,0,null,null,"10/3","10/4","10/5"]
[null,"10/3 х/б Белая",null,"10/4 х/б с ПВХ Серая (Точка)",null,"10/5 х/б Розовая",null,0]
[null,"10/3 х/б Белая",null,"10/4 х/б с ПВХ Серая (Точка)",null,"10/5 х/б Розовая",null,0,null,null,{"$f":"SUM(K3,K5,K7,K9,K11,K13,K15,K17,K19,K21)","v":0},{"$f":"SUM(L3,L5,L7,L9,L11,L13,L15,L17,L19,L21)","v":0},{"$f":"SUM(M3,M5,M7,M9,M11,M13,M15,M17,M19,M21,M23,M25,M27,M29,M31,M33,M35,M37,M39,M41,M43,M45,M47,M49,M51)","v":1000}]
[null,"10/3 х/б Белая",null,"10/4 х/б с ПВХ Серая (Точка)",null,"10/5 х/б Розовая",null,0]
[null,"10/3 х/б Белая",null,"10/4 х/б с ПВХ Серая (Точка)",null,"10/5 х/б Розовая",null,0]
[null,"10/3 х/б Белая",null,"10/4 х/б с ПВХ Серая (Точка)",null,"10/5 х/б Розовая",null,0]
[null,"10/3 х/б Белая",null,"10/4 х/б с ПВХ Серая (Точка)",null,"10/5 х/б Розовая",null,0]
[null,"10/3 х/б Белая",null,"10/4 х/б с ПВХ Серая (Точка)",null,"10/5 х/б Розовая",null,0]
[null,"10/3 х/б Белая",null,"10/4 х/б с ПВХ Серая (Точка)",null,"10/5 х/б Розовая",null,0]
[null,"10/3 х/б Белая",null,"10/4 х/б с ПВХ Серая (Точка)",null,"10/5 х/б Розовая",null,0]
[null,"10/3 х/б Белая",null,"10/4 х/б с ПВХ Серая (Точка)",null,"10/5 х/б Розовая",null,0]
[null,"10/3 х/б Белая",null,"10/4 х/б с ПВХ Серая (Точка)",null,"10/5 х/б Розовая",null,0]
[null,"10/3 х/б Белая",null,"10/4 х/б с ПВХ Серая (Точка)",null,"10/5 х/б Розовая",null,0]
[null,"10/3 х/б Белая",null,"10/4 х/б с ПВХ Серая (Точка)",null,"10/5 х/б Розовая",null,0]
[null,"10/3 х/б Белая",null,"10/4 х/б с ПВХ Серая (Точка)",null,"10/5 х/б Розовая",null,{"$f":"SUM(C67,E67,G67)","v":0}]
[null,"10/3 х/б Белая",null,"10/4 х/б с ПВХ Серая (Точка)",null,"10/5 х/б Розовая",null,0]
[null,"10/3 х/б Белая",null,"10/4 х/б с ПВХ Серая (Точка)",null,"10/5 х/б Розовая",null,0]
[null,"10/3 х/б Белая",null,"10/4 х/б с ПВХ Серая (Точка)",null,"10/5 х/б Розовая",null,0]
[null,"10/3 х/б Белая",null,"10/4 х/б с ПВХ Серая (Точка)",null,"10/5 х/б Розовая",null,0]
[null,"10/3 х/б Белая",null,"10/4 х/б с ПВХ Серая (Точка)",null,"10/5 х/б Розовая",null,0]
[null,"10/3 х/б Белая",null,"10/4 х/б с ПВХ Серая (Точка)",null,"10/5 х/б Розовая",null,0]
[null,"10/3 х/б Белая",null,"10/4 х/б с ПВХ Серая (Точка)",null,"10/5 х/б Розовая",null,0]
[null,"10/3 х/б Белая",null,"10/4 х/б с ПВХ Серая (Точка)",null,"10/5 х/б Розовая",null,0]
[null,"10/3 х/б Белая",null,"10/4 х/б с ПВХ Серая (Точка)",null,"10/5 х/б Розовая",null,0]
[null,"10/3 х/б Белая",null,"10/4 х/б с ПВХ Серая (Точка)",null,"10/5 х/б Розовая",null,0]
[null,"10/3 х/б Белая",null,"10/4 х/б с ПВХ Серая (Точка)",null,"10/5 х/б Розовая",null,0]
[null,"10/3 х/б Белая",null,"10/4 х/б с ПВХ Серая (Точка)",null,"10/5 х/б Розовая",null,0]
[null,"10/3 х/б Белая",null,"10/4 х/б с ПВХ Серая (Точка)",null,"10/5 х/б Розовая",null,0]
[null,"10/3 х/б Белая",null,"10/4 х/б с ПВХ Серая (Точка)",null,"10/5 х/б Розовая",null,0]
[null,"10/3 х/б Белая",null,"10/4 х/б с ПВХ Серая (Точка)",null,"10/5 х/б Розовая",null,0]
[null,"10/3 х/б Белая",null,"10/4 х/б с ПВХ Серая (Точка)",null,"10/5 х/б Розовая",null,0]
[null,"10/3 х/б Белая",null,"10/4 х/б с ПВХ Серая (Точка)",null,"10/5 х/б Розовая",null,0]
[null,"10/3 х/б Белая",null,"10/4 х/б с ПВХ Серая (Точка)",null,"10/5 х/б Розовая",null,0]
[null,"10/3 х/б Белая",null,"10/4 х/б с ПВХ Серая (Точка)",null,"10/5 х/б Розовая",null,0]
[null,"10/3 х/б Белая",null,"10/4 х/б с ПВХ Серая (Точка)",null,"10/5 х/б Розовая",null,0]
[null,"10/3 х/б Белая",null,"10/4 х/б с ПВХ Серая (Точка)",null,"10/5 х/б Розовая",null,0]
[null,"10/3 х/б Белая",null,"10/4 х/б с ПВХ Серая (Точка)",null,"10/5 х/б Розовая",null,0]
[null,"10/3 х/б Белая",null,"10/4 х/б с ПВХ Серая (Точка)",null,"10/5 х/б Розовая",null,0]
[null,"10/3 х/б Белая",null,"10/4 х/б с ПВХ Серая (Точка)",null,"10/5 х/б Розовая",null,0]
[null,"10/3 х/б Белая",null,"10/4 х/б с ПВХ Серая (Точка)",null,"10/5 х/б Розовая",null,0]
[null,"10/3 х/б Белая",null,"10/4 х/б с ПВХ Серая (Точка)",null,"10/5 х/б Розовая",null,0]
[null,"10/3 х/б Белая",null,"10/4 х/б с ПВХ Серая (Точка)",null,"10/5 х/б Розовая",null,0]
[null,"10/3 х/б Белая",null,"10/4 х/б с ПВХ Серая (Точка)",null,"10/5 х/б Розовая",null,0]
[null,"10/3 х/б Белая",null,"10/4 х/б с ПВХ Серая (Точка)",null,"10/5 х/б Розовая",null,0]
[null,"10/3 х/б Белая",null,"10/4 х/б с ПВХ Серая (Точка)",null,"10/5 х/б Розовая",null,0]
[null,"10/3 х/б Белая",null,"10/4 х/б с ПВХ Серая (Точка)",null,"10/5 х/б Розовая",null,0]
[null,"10/3 х/б Белая",null,"10/4 х/б с ПВХ Серая (Точка)",null,"10/5 х/б Розовая",null,0]
[null,"10/3 х/б Белая",null,"10/4 х/б с ПВХ Серая (Точка)",null,"10/5 х/б Розовая",null,0]
[null,"10/3 х/б Белая",null,"10/4 х/б с ПВХ Серая (Точка)",null,"10/5 х/б Розовая",null,0]
[null,"10/3 х/б Белая",null,"10/4 х/б с ПВХ Серая (Точка)",null,"10/5 х/б Розовая",null,0]
[null,"10/3 х/б Белая",null,"10/4 х/б с ПВХ Серая (Точка)",null,"10/5 х/б Розовая",null,0]
[null,"10/3 х/б Белая",null,"10/4 х/б с ПВХ Серая (Точка)",null,"10/5 х/б Розовая",null,0]
[null,"10/3 х/б Белая",null,"10/4 х/б с ПВХ Серая (Точка)",null,"10/5 х/б Розовая",null,0]
[null,"10/3 х/б Белая",null,"10/4 х/б с ПВХ Серая (Точка)",null,"10/5 х/б Розовая",null,0]
[null,"10/3 х/б Белая",null,"10/4 х/б с ПВХ Серая (Точка)",null,"10/5 х/б Розовая",null,0]
[null,"10/3 х/б Белая",null,"10/4 х/б с ПВХ Серая (Точка)",null,"10/5 х/б Розовая",null,0]
[null,"10/3 х/б Белая",null,"10/4 х/б с ПВХ Серая (Точка)",null,"10/5 х/б Розовая",null,0]
[null,"10/3 х/б Белая",null,"10/4 х/б с ПВХ Серая (Точка)",null,"10/5 х/б Розовая",null,0]
[null,"10/3 х/б Белая",null,"10/4 х/б с ПВХ Серая (Точка)",null,"10/5 х/б Розовая",null,0]
[null,"10/3 х/б Белая",null,"10/4 х/б с ПВХ Серая (Точка)",null,"10/5 х/б Розовая",null,0]
[null,"10/3 х/б Белая",null,"10/4 х/б с ПВХ Серая (Точка)",null,"10/5 х/б Розовая",null,0]